fUST/lending_fUST_20251004
["ID","MTS","AMOUNT","RATE_DAILY","PERIOD"]
[389129010,1759583438953,-578.54,0.00019452,2]
[389129013,1759583438962,-500.0,0.00019452,2]
[389129015,1759583438972,-500.0,0.00019452,2]
[389129016,1759583438981,-500.0,0.00019452,2]
[389129019,1759583438991,-500.0,0.00019452,2]
[389129021,1759583439000,-937.67,0.00019452,2]
[389129022,1759583439010,-169.13142331,0.00019452,2]
[389129024,1759583439019,-500.0,0.00019452,2]
[389129025,1759583439029,-1324.22,0.00019452,2]
[389129026,1759583439038,-500.0,0.00019452,2]
[389129027,1759583439048,-295.42193492,0.00019452,2]
[389129028,1759583439057,-363.70459903,0.00019452,2]
[389129029,1759583439066,-467.18751227,0.00019452,2]
[389129030,1759583439075,-500.0,0.00019452,2]
[389129031,1759583439084,-500.0,0.00019452,2]
[389129032,1759583439094,-500.0,0.00019452,2]
[389129033,1759583439104,-586.08,0.00019452,2]
[389129034,1759583439113,-500.0,0.00019452,2]
[389129035,1759583439122,-500.0,0.00019452,2]
[389129036,1759583439132,-500.0,0.00019452,2]
[389129037,1759583439142,-500.0,0.00019452,2]
[389129038,1759583439152,-500.0,0.00019452,2]
[389129039,1759583439161,-500.0,0.00019452,2]
[389129040,1759583439171,-1728.3,0.00019452,2]
[389129041,1759583439180,-500.0,0.00019452,2]
[389129042,1759583439191,-500.0,0.00019452,2]
[389129043,1759583439200,-500.0,0.00019452,2]
[389129044,1759583439209,-500.0,0.00019452,2]
[389129045,1759583439218,-520.57236716,0.00019452,2]
[389129046,1759583439228,-500.0,0.00019452,2]
[389129047,1759583439237,-500.0,0.00019452,2]
[389129048,1759583439247,-500.0,0.00019452,2]
[389129049,1759583439256,-500.0,0.00019452,2]
[389129050,1759583439266,-500.0,0.00019452,2]
[389129051,1759583439276,-500.0,0.00019452,2]
[389129052,1759583439286,-500.0,0.00019452,2]
[389129053,1759583439295,-500.0,0.00019452,2]
[389129054,1759583439305,-612.39,0.00019452,2]
[389129055,1759583439315,-1342.34,0.00019452,2]
[389129056,1759583439324,-500.0,0.00019452,2]
[389129057,1759583439333,-1131.08,0.00019452,2]
[389129058,1759583439342,-500.0,0.00019452,2]
[389129059,1759583439351,-590.61324914,0.00019525,2]
[389129060,1759583439360,-3333.34333334,0.00019611,2]
[389129061,1759583439369,-732.49,0.00019615,3]
[389129062,1759583439378,-590.61324914,0.00019619,2]
[389129064,1759583439390,-500.0,0.00019625,2]
[389129066,1759583439403,-500.0,0.00019625,2]
[389129068,1759583439412,-500.0,0.00019625,2]
[389129070,1759583439420,-500.0,0.00019625,2]
[389129071,1759583439430,-500.0,0.00019625,2]
[389129074,1759583439440,-500.0,0.00019625,2]
[389129075,1759583439449,-500.0,0.00019625,2]
[389129078,1759583439459,-500.0,0.00019625,2]
[389129080,1759583439469,-500.0,0.00019625,2]
[389129082,1759583439480,-500.0,0.00019625,2]
[389129084,1759583439489,-307.90295672,0.00019625,2]
[389129086,1759583439499,-257.36122674,0.00019625,2]
[389129089,1759583439508,-500.0,0.00019625,2]
[389129092,1759583439517,-500.0,0.00019625,2]
[389129095,1759583439527,-500.0,0.00019625,2]
[389129098,1759583439537,-500.0,0.00019625,2]
[389129101,1759583439546,-500.0,0.00019625,2]
[389129104,1759583439555,-500.0,0.00019625,2]
[389129106,1759583439564,-500.0,0.00019625,2]
[389129108,1759583439572,-568.94,0.00019625,2]
[389129110,1759583439582,-500.0,0.00019625,2]
[389129112,1759583439591,-500.0,0.00019625,2]
[389129114,1759583439600,-500.0,0.00019625,2]
[389129137,1759583439794,-500.0,0.00019625,2]
[389129139,1759583439804,-414.06158678,0.00019625,2]
[389129141,1759583439813,-500.0,0.00019625,2]
[389129143,1759583439822,-470.21158696,0.00019625,2]
[389129145,1759583439831,-500.0,0.00019625,2]
[389129147,1759583439840,-563.34,0.00019625,2]
[389129149,1759583439850,-500.0,0.00019625,2]
[389129151,1759583439859,-500.0,0.00019625,2]
[389129152,1759583439868,-500.0,0.00019625,2]
[389129153,1759583439877,-500.0,0.00019625,2]
[389129154,1759583439887,-1068.02,0.00019625,2]
[389129155,1759583439896,-500.0,0.00019625,2]
[389129156,1759583439905,-500.0,0.00019625,2]
[389129157,1759583439915,-500.0,0.00019625,2]
[389129158,1759583439924,-182.85701389,0.00019625,2]
[389129159,1759583439934,-500.0,0.00019625,2]
[389129160,1759583439943,-500.0,0.00019625,2]
[389129161,1759583439952,-500.0,0.00019625,2]
[389129162,1759583439962,-500.0,0.00019625,2]
[389129164,1759583439971,-500.0,0.00019625,2]
[389129166,1759583439980,-784.94,0.00019625,2]
[389129168,1759583439989,-500.0,0.00019625,2]
[389129170,1759583439999,-721.06,0.00019625,2]
[389129172,1759583440007,-500.0,0.00019625,2]
[389129174,1759583440016,-500.0,0.00019625,2]
[389129176,1759583440026,-500.0,0.00019625,2]
[389129178,1759583440035,-646.73,0.00019625,2]
[389129180,1759583440044,-500.0,0.00019625,2]
[389129182,1759583440054,-500.0,0.00019625,2]
[389129184,1759583440063,-547.5,0.00019625,2]
[389129186,1759583440072,-500.0,0.00019625,2]
[389129188,1759583440082,-500.0,0.00019625,2]
[389129190,1759583440091,-500.0,0.00019625,2]
[389129192,1759583440100,-500.0,0.00019625,2]
[389129194,1759583440109,-500.0,0.00019625,2]
[389129196,1759583440119,-1140.52,0.00019625,2]
[389129198,1759583440128,-500.0,0.00019625,2]
[389129200,1759583440139,-500.0,0.00019625,2]
[389129202,1759583440149,-500.0,0.00019625,2]
[389129204,1759583440158,-581.63,0.00019625,2]
[389129206,1759583440167,-500.0,0.00019625,2]
[389129208,1759583440176,-500.0,0.00019625,2]
[389129210,1759583440185,-500.0,0.00019625,2]
[389129212,1759583440194,-648.45,0.00019625,2]
[389129214,1759583440203,-500.0,0.00019625,2]
[389129215,1759583440212,-500.0,0.00019625,2]
[389129217,1759583440221,-500.0,0.00019625,2]
[389129219,1759583440231,-500.0,0.00019625,2]
[389129221,1759583440240,-500.0,0.00019625,2]
[389129223,1759583440249,-500.0,0.00019625,2]
[389129224,1759583440259,-500.0,0.00019625,2]
[389129225,1759583440268,-500.0,0.00019625,2]
[389129226,1759583440277,-500.0,0.00019625,2]
[389129227,1759583440286,-500.0,0.00019625,2]
[389129229,1759583440295,-500.0,0.00019625,2]
[389129231,1759583440304,-500.0,0.00019625,2]
[389129233,1759583440313,-500.0,0.00019625,2]
[389129235,1759583440323,-500.0,0.00019625,2]
[389129237,1759583440331,-500.0,0.00019625,2]
[389129239,1759583440340,-500.0,0.00019625,2]
[389129241,1759583440351,-229.13571346,0.00019625,2]
[389129243,1759583440359,-566.51,0.00019625,2]
[389129245,1759583440368,-500.0,0.00019625,2]
[389129246,1759583440377,-814.11,0.00019625,2]
[389129247,1759583440387,-500.0,0.00019625,2]
[389129248,1759583440399,-500.0,0.00019625,2]
[389129249,1759583440409,-500.0,0.00019625,2]
[389129250,1759583440418,-500.0,0.00019625,2]
[389129251,1759583440427,-500.0,0.00019625,2]
[389129252,1759583440436,-500.0,0.00019625,2]
[389129253,1759583440445,-500.0,0.00019625,2]
[389129254,1759583440454,-527.57,0.00019625,2]
[389129255,1759583440464,-500.0,0.00019625,2]
[389129256,1759583440473,-500.0,0.00019625,2]
[389129257,1759583440482,-500.0,0.00019625,2]
[389129258,1759583440494,-500.0,0.00019625,2]
[389129259,1759583440502,-609.8,0.00019625,2]
[389129261,1759583440512,-500.0,0.00019625,2]
[389129262,1759583440521,-540.42,0.00019625,2]
[389129263,1759583440530,-687.37,0.00019625,2]
[389129264,1759583440539,-500.0,0.00019625,2]
[389129265,1759583440549,-385.68224796,0.00019625,2]
[389129266,1759583440559,-500.0,0.00019625,2]
[389129267,1759583440568,-500.0,0.00019625,2]
[389129268,1759583440577,-523.7754595,0.00019625,2]
[389129269,1759583440587,-500.0,0.00019625,2]
[389129270,1759583440596,-500.0,0.00019625,2]
[389129271,1759583440606,-500.0,0.00019625,2]
[389129272,1759583440615,-500.0,0.00019625,2]
[389129273,1759583440625,-1212.08,0.00019625,2]
[389129274,1759583440635,-500.0,0.00019625,2]
[389129275,1759583440644,-500.0,0.00019625,2]
[389129276,1759583440653,-500.0,0.00019625,2]
[389129277,1759583440663,-500.0,0.00019625,2]
[389129278,1759583440673,-684.28,0.00019625,2]
[389129279,1759583440682,-500.0,0.00019625,2]
[389129280,1759583440691,-500.0,0.00019625,2]
[389129281,1759583440701,-500.0,0.00019625,2]
[389129282,1759583440711,-500.0,0.00019625,2]
[389129283,1759583440720,-500.0,0.00019625,2]
[389129284,1759583440731,-500.0,0.00019625,2]
[389129285,1759583440741,-500.0,0.00019625,2]
[389129286,1759583440750,-563.21,0.00019625,2]
[389129287,1759583440759,-796.51,0.00019625,2]
[389129288,1759583440769,-500.0,0.00019625,2]
[389129289,1759583440778,-500.0,0.00019625,2]
[389129290,1759583440787,-500.0,0.00019625,2]
[389129291,1759583440797,-500.0,0.00019625,2]
[389129292,1759583440806,-550.45,0.00019625,2]
[389129293,1759583440815,-611.71,0.00019625,2]
[389129294,1759583440825,-500.0,0.00019625,2]
[389129295,1759583440835,-500.0,0.00019625,2]
[389129296,1759583440844,-500.0,0.00019625,2]
[389129297,1759583440853,-500.0,0.00019625,2]
[389129298,1759583440862,-500.0,0.00019625,2]
[389129299,1759583440872,-500.0,0.00019625,2]
[389129300,1759583440884,-500.0,0.00019625,2]
[389129301,1759583440893,-500.0,0.00019625,2]
[389129302,1759583440902,-562.47,0.00019625,2]
[389129303,1759583440911,-596.56905718,0.00019625,2]
[389129304,1759583440921,-3989.68,0.00019625,2]
[389129306,1759583440930,-2201.01,0.00019625,2]
[389129307,1759583440940,-1890.84,0.00019625,2]
[389129308,1759583440950,-504.7952278,0.00019625,2]
[389129309,1759583440959,-1405.91,0.00019625,2]
[389129310,1759583440968,-500.0,0.00019625,2]
[389129311,1759583440978,-500.0,0.00019625,2]
[389129312,1759583440987,-720.09,0.00019625,2]
[389129313,1759583440997,-500.0,0.00019625,2]
[389129314,1759583441007,-1109.42,0.00019625,2]
[389129315,1759583441018,-500.0,0.00019625,2]
[389129316,1759583441028,-1125.63,0.00019625,2]
[389129317,1759583441037,-500.0,0.00019625,2]
[389129318,1759583441049,-500.0,0.00019625,2]
[389129319,1759583441059,-626.97,0.00019625,2]
[389129320,1759583441070,-2200.25,0.00019625,2]
[389129321,1759583441080,-500.0,0.00019625,2]
[389129322,1759583441089,-564.75,0.00019625,2]
[389129323,1759583441099,-744.86,0.00019625,2]
[389129324,1759583441109,-577.71,0.00019625,2]
[389129325,1759583441119,-500.0,0.00019625,2]
[389129326,1759583441129,-1467.16,0.00019625,2]
[389129327,1759583441139,-2013.61,0.00019625,2]
[389129328,1759583441149,-500.0,0.00019625,2]
[389129329,1759583441159,-500.0,0.00019625,2]
[389129330,1759583441169,-700.05,0.00019625,2]
[389129331,1759583441179,-500.0,0.00019625,2]
[389129332,1759583441189,-500.0,0.00019625,2]
[389129333,1759583441199,-500.0,0.00019625,2]
[389129334,1759583441209,-500.0,0.00019625,2]
[389129335,1759583441219,-751.18,0.00019625,2]
[389129336,1759583441229,-500.0,0.00019625,2]
[389129337,1759583441238,-500.0,0.00019625,2]
[389129338,1759583441247,-500.0,0.00019625,2]
[389129339,1759583441257,-500.0,0.00019625,2]
[389129340,1759583441267,-500.0,0.00019625,2]
[389129341,1759583441276,-500.0,0.00019625,2]
[389129342,1759583441287,-500.0,0.00019625,2]
[389129343,1759583441296,-500.0,0.00019625,2]
[389129344,1759583441307,-500.0,0.00019625,2]
[389129345,1759583441316,-500.0,0.00019625,2]
[389129346,1759583441326,-500.0,0.00019625,2]
[389129347,1759583441336,-500.0,0.00019625,2]
[389129348,1759583441346,-500.0,0.00019625,2]
[389129349,1759583441355,-500.0,0.00019625,2]
[389129350,1759583441364,-2490.2,0.00019625,2]
[389129351,1759583441373,-500.0,0.00019625,2]
[389129352,1759583441382,-500.0,0.00019625,2]
[389129353,1759583441392,-500.0,0.00019625,2]
[389129354,1759583441405,-566.53909547,0.00019625,2]
[389129355,1759583441414,-500.0,0.00019625,2]
[389129356,1759583441423,-500.0,0.00019625,2]
[389129357,1759583441432,-500.0,0.00019625,2]
[389129358,1759583441443,-500.0,0.00019625,2]
[389129359,1759583441452,-439.91,0.00019625,2]
[389129360,1759583441461,-500.0,0.00019625,2]
[389129361,1759583441475,-500.0,0.00019625,2]
[389129362,1759583441484,-893.99,0.00019625,2]
[389129363,1759583441494,-500.0,0.00019625,2]
[389129364,1759583441503,-739.59,0.00019625,2]
[389129365,1759583441511,-500.0,0.00019625,2]
[389129366,1759583441520,-1908.79,0.00019625,2]
[389129367,1759583441530,-500.0,0.00019625,2]
[389129368,1759583441541,-500.0,0.00019625,2]
[389129369,1759583441551,-757.41,0.00019625,2]
[389129370,1759583441561,-586.49,0.00019625,2]
[389129371,1759583441571,-500.0,0.00019625,2]
[389129372,1759583441580,-152.28029068,0.00019625,2]
[389129373,1759583441590,-211.3999655,0.00019625,2]
[389129374,1759583441599,-500.0,0.00019625,2]
[389129375,1759583441608,-500.0,0.00019625,2]
[389129376,1759583441619,-321570.83359102,0.00019626,2]
[389129377,1759583441628,-500.0,0.00019626,2]
[389129378,1759583441638,-500.0,0.00019673,2]
[389129379,1759583441647,-500.0,0.0001971,2]
[389129380,1759583441657,-590.61324914,0.00019713,2]
[389129381,1759583441666,-500.0,0.00019724,2]
[389129382,1759583441675,-518.44,0.00019724,2]
[389129383,1759583441684,-773.72,0.00019724,2]
[389129384,1759583441694,-500.0,0.00019724,2]
[389129385,1759583441703,-746.32,0.00019724,2]
[389129386,1759583441713,-2856.36,0.00019724,2]
[389129387,1759583441721,-336.82016554,0.00019724,2]
[389129388,1759583441732,-3532.55,0.00019724,2]
[389129389,1759583441741,-500.0,0.00019724,2]
[389129390,1759583441751,-965.92,0.00019724,2]
[389129391,1759583441761,-500.0,0.00019724,2]
[389129392,1759583441771,-500.0,0.00019725,2]
[389129393,1759583441780,-500.0,0.00019725,2]
[389129394,1759583441790,-500.0,0.00019725,2]
[389129395,1759583441799,-3295.088688,0.00019725,2]
[389129396,1759583441808,-500.0,0.00019725,2]
[389129397,1759583441817,-500.0,0.00019725,2]
[389129398,1759583441827,-192.17565635,0.00019725,2]
[389129399,1759583441836,-500.0,0.00019725,2]
[389129400,1759583441846,-500.0,0.00019725,2]
[389129401,1759583441855,-1101.47,0.00019725,2]
[389129402,1759583441864,-500.0,0.00019725,2]
[389129403,1759583441874,-1126.81,0.00019725,2]
[389129404,1759583441884,-815.93,0.00019725,2]
[389129405,1759583441894,-576.38,0.00019725,2]
[389129406,1759583441903,-1453.9,0.00019725,2]
[389129407,1759583441913,-500.0,0.00019725,2]
[389129408,1759583441922,-759.78,0.00019725,2]
[389129409,1759583441931,-951.72,0.00019725,2]
[389129410,1759583441941,-3881.62,0.00019725,2]
[389129411,1759583441950,-500.0,0.00019725,2]
[389129412,1759583441959,-801.25,0.00019725,2]
[389129413,1759583441968,-2670.5,0.00019725,2]
[389129414,1759583441977,-855.29,0.00019725,2]
[389129415,1759583441986,-500.0,0.00019725,2]
[389129416,1759583441995,-1795.48,0.00019725,2]
[389129417,1759583442004,-500.0,0.00019725,2]
[389129418,1759583442013,-500.0,0.00019725,2]
[389129419,1759583442022,-556.61,0.00019725,2]
[389129420,1759583442032,-516.21,0.00019725,2]
[389129421,1759583442041,-1752.38,0.00019725,2]
[389129422,1759583442050,-756.25,0.00019725,2]
[389129423,1759583442059,-500.0,0.00019725,2]
[389129424,1759583442068,-500.0,0.00019725,2]
[389129425,1759583442077,-1232.4,0.00019725,2]
[389129426,1759583442087,-665.53,0.00019725,2]
[389129427,1759583442096,-1624.87,0.00019725,2]
[389129428,1759583442105,-600.67,0.00019725,2]
[389129429,1759583442114,-500.0,0.00019725,2]
[389129430,1759583442123,-847.95,0.00019725,2]
[389129431,1759583442132,-500.0,0.00019725,2]
[389129432,1759583442141,-500.0,0.00019725,2]
[389129433,1759583442150,-608.29,0.00019725,2]
[389129434,1759583442159,-744.96,0.00019725,2]
[389129435,1759583442168,-1011.11,0.00019726,2]
[389129436,1759583442177,-500.0,0.00019726,2]
[389129437,1759583442186,-500.0,0.00019726,2]
[389129438,1759583442196,-500.0,0.00019726,2]
[389129439,1759583442205,-561.58,0.00019726,2]
[389129440,1759583442214,-500.0,0.00019726,2]
[389129441,1759583442223,-500.0,0.00019726,2]
[389129442,1759583442233,-500.0,0.00019726,2]
[389129443,1759583442242,-500.0,0.00019726,2]
[389129444,1759583442251,-500.0,0.00019726,2]
[389129445,1759583442261,-586.87,0.00019726,2]
[389129446,1759583442269,-500.0,0.00019726,2]
[389129447,1759583442279,-500.0,0.00019726,2]
[389129448,1759583442288,-500.0,0.00019726,2]
[389129449,1759583442297,-500.0,0.00019726,2]
[389129450,1759583442307,-590.5,0.00019726,2]
[389129451,1759583442316,-523.95,0.00019726,2]
[389129452,1759583442325,-500.0,0.00019726,2]
[389129453,1759583442335,-500.0,0.00019726,2]
[389129454,1759583442343,-578.54,0.00019726,2]
[389129455,1759583442353,-500.0,0.00019726,2]
[389129456,1759583442362,-500.0,0.00019726,2]
[389129457,1759583442372,-500.0,0.00019726,2]
[389129458,1759583442380,-539.07407112,0.00019726,2]
[389129459,1759583442392,-937.67,0.00019726,2]
[389129460,1759583442401,-500.0,0.00019726,2]
[389129461,1759583442410,-1324.22,0.00019726,2]
[389129462,1759583442419,-500.0,0.00019726,2]
[389129463,1759583442428,-500.0,0.00019726,2]
[389129464,1759583442437,-500.0,0.00019726,2]
[389129466,1759583442447,-500.0,0.00019726,2]
[389129467,1759583442457,-586.08,0.00019726,2]
[389129468,1759583442467,-500.0,0.00019726,2]
[389129469,1759583442476,-500.0,0.00019726,2]
[389129470,1759583442485,-500.0,0.00019726,2]
[389129471,1759583442494,-500.0,0.00019726,2]
[389129472,1759583442503,-500.0,0.00019726,2]
[389129473,1759583442512,-500.0,0.00019726,2]
[389129474,1759583442522,-1728.3,0.00019726,2]
[389129475,1759583442532,-500.0,0.00019726,2]
[389129476,1759583442541,-500.0,0.00019726,2]
[389129477,1759583442551,-500.0,0.00019726,2]
[389129478,1759583442561,-500.0,0.00019726,2]
[389129479,1759583442572,-500.0,0.00019726,2]
[389129480,1759583442582,-500.0,0.00019726,2]
[389129481,1759583442592,-500.0,0.00019726,2]
[389129482,1759583442602,-500.0,0.00019726,2]
[389129483,1759583442611,-500.0,0.00019726,2]
[389129484,1759583442621,-500.0,0.00019726,2]
[389129485,1759583442631,-500.0,0.00019726,2]
[389129487,1759583442640,-500.0,0.00019726,2]
[389129489,1759583442648,-612.39,0.00019726,2]
[389129491,1759583442658,-1342.34,0.00019726,2]
[389129493,1759583442666,-500.0,0.00019726,2]
[389129495,1759583442675,-1131.08,0.00019726,2]
[389129497,1759583442684,-500.0,0.00019726,2]
[389129498,1759583442694,-8327.0534134,0.00019762,2]
[389129499,1759583442704,-586.53,0.00019799,2]
[389129500,1759583442713,-590.61324914,0.00019806,2]
[389129501,1759583442723,-168.0,0.00019821,2]
[389129502,1759583442733,-500.0,0.00019899,2]
[389129503,1759583442743,-500.0,0.00019899,2]
[389129504,1759583442752,-500.0,0.00019899,2]
[389129506,1759583442761,-500.0,0.00019899,2]
[389129507,1759583442770,-500.0,0.00019899,2]
[389129508,1759583442780,-500.0,0.00019899,2]
[389129509,1759583442789,-500.0,0.00019899,2]
[389129510,1759583442798,-500.0,0.00019899,2]
[389129511,1759583442808,-500.0,0.00019899,2]
[389129512,1759583442817,-500.0,0.00019899,2]
[389129513,1759583442826,-568.94,0.00019899,2]
[389129514,1759583442835,-500.0,0.00019899,2]
[389129515,1759583442845,-500.0,0.00019899,2]
[389129516,1759583442854,-500.0,0.00019899,2]
[389129517,1759583442863,-500.0,0.00019899,2]
[389129518,1759583442873,-500.0,0.00019899,2]
[389129519,1759583442882,-563.34,0.00019899,2]
[389129520,1759583442891,-500.0,0.00019899,2]
[389129521,1759583442901,-500.0,0.00019899,2]
[389129522,1759583442911,-500.0,0.00019899,2]
[389129523,1759583442920,-1068.02,0.00019899,2]
[389129524,1759583442929,-500.0,0.00019899,2]
[389129525,1759583442940,-500.0,0.00019899,2]
[389129526,1759583442950,-500.0,0.00019899,2]
[389129527,1759583442959,-784.94,0.00019899,2]
[389129528,1759583442968,-500.0,0.00019899,2]
[389129529,1759583442977,-721.06,0.00019899,2]
[389129530,1759583442986,-500.0,0.00019899,2]
[389129531,1759583442996,-500.0,0.00019899,2]
[389129532,1759583443005,-500.0,0.00019899,2]
[389129533,1759583443015,-646.73,0.00019899,2]
[389129534,1759583443025,-500.0,0.00019899,2]
[389129535,1759583443034,-500.0,0.00019899,2]
[389129536,1759583443043,-547.5,0.00019899,2]
[389129537,1759583443053,-500.0,0.00019899,2]
[389129538,1759583443062,-500.0,0.00019899,2]
[389129539,1759583443071,-500.0,0.00019899,2]
[389129540,1759583443080,-500.0,0.00019899,2]
[389129541,1759583443090,-500.0,0.00019899,2]
[389129542,1759583443099,-1140.52,0.00019899,2]
[389129543,1759583443109,-500.0,0.00019899,2]
[389129544,1759583443119,-500.0,0.00019899,2]
[389129545,1759583443128,-514.16931783,0.00019899,2]
[389129546,1759583443138,-581.63,0.00019899,2]
[389129547,1759583443147,-500.0,0.00019899,2]
[389129548,1759583443157,-500.0,0.00019899,2]
[389129549,1759583443166,-500.0,0.00019899,2]
[389129550,1759583443175,-648.45,0.00019899,2]
[389129551,1759583443184,-500.0,0.00019899,2]
[389129552,1759583443193,-500.0,0.00019899,2]
[389129553,1759583443206,-500.0,0.00019899,2]
[389129554,1759583443215,-500.0,0.00019899,2]
[389129555,1759583443225,-500.0,0.00019899,2]
[389129556,1759583443236,-209.02,0.00019899,2]
[389129557,1759583443246,-566.51,0.00019899,2]
[389129558,1759583443255,-500.0,0.00019899,2]
[389129559,1759583443265,-814.11,0.00019899,2]
[389129560,1759583443278,-500.0,0.00019899,2]
[389129561,1759583443289,-500.0,0.00019899,2]
[389129562,1759583443299,-500.0,0.00019899,2]
[389129563,1759583443308,-168.44422022,0.00019899,2]
[389129564,1759583443317,-500.0,0.00019899,2]
[389129565,1759583443326,-527.57,0.00019899,2]
[389129566,1759583443335,-500.0,0.00019899,2]
[389129567,1759583443345,-500.0,0.00019899,2]
[389129568,1759583443354,-500.0,0.00019899,2]
[389129569,1759583443364,-609.8,0.00019899,2]
[389129570,1759583443373,-500.0,0.00019899,2]
[389129571,1759583443382,-687.37,0.00019899,2]
[389129572,1759583443394,-500.0,0.00019899,2]
[389129573,1759583443404,-500.0,0.00019899,2]
[389129574,1759583443413,-500.0,0.00019899,2]
[389129575,1759583443423,-500.0,0.00019899,2]
[389129576,1759583443432,-500.0,0.00019899,2]
[389129577,1759583443443,-1212.08,0.00019899,2]
[389129578,1759583443452,-500.0,0.00019899,2]
[389129579,1759583443462,-333.6448354,0.00019899,2]
[389129580,1759583443472,-684.28,0.00019899,2]
[389129581,1759583443484,-500.0,0.00019899,2]
[389129582,1759583443493,-563.21,0.00019899,2]
[389129583,1759583443503,-796.51,0.00019899,2]
[389129584,1759583443512,-550.45,0.00019899,2]
[389129585,1759583443521,-611.71,0.00019899,2]
[389129586,1759583443531,-500.0,0.00019899,2]
[389129587,1759583443540,-500.0,0.00019899,2]
[389129588,1759583443549,-500.0,0.00019899,2]
[389129589,1759583443559,-562.47,0.00019899,2]
[389129590,1759583443568,-3989.68,0.00019899,2]
[389129591,1759583443577,-2201.01,0.00019899,2]
[389129592,1759583443586,-1890.84,0.00019899,2]
[389129593,1759583443597,-1405.91,0.00019899,2]
[389129594,1759583443606,-500.0,0.00019899,2]
[389129595,1759583443615,-500.0,0.00019899,2]
[389129596,1759583443626,-720.09,0.00019899,2]
[389129597,1759583443635,-500.0,0.00019899,2]
[389129598,1759583443646,-1109.42,0.00019899,2]
[389129599,1759583443657,-500.0,0.00019899,2]
[389129600,1759583443667,-1125.63,0.00019899,2]
[389129601,1759583443676,-500.0,0.00019899,2]
[389129602,1759583443686,-500.0,0.00019899,2]
[389129603,1759583443695,-626.97,0.00019899,2]
[389129604,1759583443704,-2200.25,0.00019899,2]
[389129605,1759583443714,-564.75,0.00019899,2]
[389129606,1759583443723,-744.86,0.00019899,2]
[389129607,1759583443734,-577.71,0.00019899,2]
[389129608,1759583443881,-500.0,0.00019899,2]
[389129609,1759583443909,-1467.16,0.00019899,2]
[389129610,1759583443919,-2013.61,0.00019899,2]
[389129611,1759583443930,-700.05,0.00019899,2]
[389129612,1759583443939,-751.18,0.00019899,2]
[389129613,1759583443949,-500.0,0.00019899,2]
[389129614,1759583443958,-500.0,0.00019899,2]
[389129615,1759583443967,-500.0,0.00019899,2]
[389129616,1759583443977,-500.0,0.00019899,2]
[389129617,1759583443987,-2490.2,0.00019899,2]
[389129618,1759583443996,-481.62687088,0.00019899,2]
[389129619,1759583444006,-500.0,0.00019899,2]
[389129620,1759583444015,-500.0,0.00019899,2]
[389129621,1759583444025,-500.0,0.00019899,2]
[389129622,1759583444034,-500.0,0.00019899,2]
[389129623,1759583444043,-500.0,0.00019899,2]